[Event "*** Titled Tuesday Blitz"]
[Site "Chess.com"]
[Date "2020.10.20"]
[Round "7"]
[White "manitodeplomo"]
[Black "vladgoncharov"]
[Result "1-0"]
[WhiteElo "2670"]
[BlackElo "2498"]
[TimeControl "180+1"]
[EndTime "11:20:24 PDT"]
[Termination "manitodeplomo won by resignation"]

1. d4 {[%clk 0:02:56.3]} 1... Nf6 {[%clk 0:02:59.3]} 2. c4 {[%clk 0:02:55.8]}
2... e6 {[%clk 0:02:59.3]} 3. Nf3 {[%clk 0:02:53.9]} 3... Bb4+ {[%clk
0:02:57.5]} 4. Nbd2 {[%clk 0:02:52.6]} 4... O-O {[%clk 0:02:52.9]} 5. g3 {[%clk
0:02:51.3]} 5... d5 {[%clk 0:02:46.5]} 6. Qc2 {[%clk 0:02:50.6]} 6... b6 {[%clk
0:02:42]} 7. Bg2 {[%clk 0:02:48.5]} 7... Bb7 {[%clk 0:02:41.4]} 8. O-O {[%clk
0:02:47.7]} 8... dxc4 {[%clk 0:02:40.7]} 9. Qxc4 {[%clk 0:02:45.9]} 9... Bd6
{[%clk 0:02:36.9]} 10. Qc2 {[%clk 0:02:37.4]} 10... Nbd7 {[%clk 0:02:33.9]} 11.
e4 {[%clk 0:02:34.6]} 11... e5 {[%clk 0:02:34]} 12. h3 {[%clk 0:02:16.9]} 12...
Rc8 {[%clk 0:02:28.8]} 13. Rd1 {[%clk 0:01:55.9]} 13... Qe7 {[%clk 0:02:27.6]}
14. dxe5 {[%clk 0:01:53.1]} 14... Nxe5 {[%clk 0:02:26.8]} 15. Nd4 {[%clk
0:01:53.2]} 15... Rfd8 {[%clk 0:01:58.2]} 16. N2b3 {[%clk 0:01:41.7]} 16... Bc5
{[%clk 0:01:38.3]} 17. Be3 {[%clk 0:01:33.6]} 17... Bxd4 {[%clk 0:01:35.6]} 18.
Nxd4 {[%clk 0:01:32.5]} 18... c5 {[%clk 0:01:29.3]} 19. Nf5 {[%clk 0:01:30.2]}
19... Qe6 {[%clk 0:01:26.4]} 20. Rxd8+ {[%clk 0:01:25.9]} 20... Rxd8 {[%clk
0:01:25.5]} 21. Rd1 {[%clk 0:01:26.8]} 21... Rxd1+ {[%clk 0:01:18.4]} 22. Qxd1
{[%clk 0:01:27.7]} 22... h6 {[%clk 0:01:12.8]} 23. Qd8+ {[%clk 0:01:26]} 23...
Kh7 {[%clk 0:01:10.8]} 24. Nd6 {[%clk 0:01:22.7]} 24... Bc6 {[%clk 0:00:50.3]}
25. Qc7 {[%clk 0:01:22]} 25... Qd7 {[%clk 0:00:44.9]} 26. Qxd7 {[%clk
0:01:15.6]} 26... Nfxd7 {[%clk 0:00:44.6]} 27. f4 {[%clk 0:01:13.2]} 27... Nd3
{[%clk 0:00:38.9]} 28. b3 {[%clk 0:01:03.1]} 28... f6 {[%clk 0:00:38.5]} 29. h4
{[%clk 0:00:37.8]} 29... Nb4 {[%clk 0:00:36.1]} 30. a4 {[%clk 0:00:35.2]} 30...
Kg8 {[%clk 0:00:32.5]} 31. Nc8 {[%clk 0:00:34.2]} 31... a6 {[%clk 0:00:29.4]}
32. Ne7+ {[%clk 0:00:29.7]} 32... Kf7 {[%clk 0:00:26.9]} 33. Nxc6 {[%clk
0:00:30.1]} 33... Nxc6 {[%clk 0:00:26.7]} 34. Bf1 {[%clk 0:00:23]} 34... Nb4
{[%clk 0:00:24.8]} 35. Bc4+ {[%clk 0:00:19.3]} 35... Ke7 {[%clk 0:00:24.9]} 36.
Kf2 {[%clk 0:00:19.6]} 36... Kd6 {[%clk 0:00:22.1]} 37. Bd2 {[%clk 0:00:17.5]}
37... Nb8 {[%clk 0:00:19.3]} 38. Bc3 {[%clk 0:00:12.6]} 38... N8c6 {[%clk
0:00:16.9]} 39. Ke3 {[%clk 0:00:11.2]} 39... Nc2+ {[%clk 0:00:15.9]} 40. Kd3
{[%clk 0:00:10.9]} 40... N2d4 {[%clk 0:00:15.9]} 41. h5 {[%clk 0:00:10.2]} 41...
b5 {[%clk 0:00:15]} 42. axb5 {[%clk 0:00:09.7]} 42... axb5 {[%clk 0:00:15.2]}
43. Bd5 {[%clk 0:00:09.4]} 43... b4 {[%clk 0:00:15.5]} 44. Bb2 {[%clk
0:00:08.9]} 44... Ne7 {[%clk 0:00:13.4]} 45. Bxd4 {[%clk 0:00:07.3]} 45... Nxd5
{[%clk 0:00:12.4]} 46. exd5 {[%clk 0:00:06.7]} 1-0

[Event "*** Titled Tuesday Blitz"]
[Site "Chess.com"]
[Date "2020.10.20"]
[Round "7"]
[White "keepitcoming"]
[Black "crescentmoon2411"]
[Result "1/2-1/2"]
[WhiteElo "2633"]
[BlackElo "2865"]
[TimeControl "180+1"]
[EndTime "11:20:25 PDT"]
[Termination "Game drawn by agreement"]

1. d4 {[%clk 0:03:00.9]} 1... Nf6 {[%clk 0:02:59.6]} 2. c4 {[%clk 0:03:01.1]}
2... c5 {[%clk 0:03:00.2]} 3. d5 {[%clk 0:03:00.7]} 3... e6 {[%clk 0:03:00.7]}
4. Nc3 {[%clk 0:03:00.8]} 4... exd5 {[%clk 0:03:01.3]} 5. cxd5 {[%clk
0:03:01.7]} 5... d6 {[%clk 0:03:02]} 6. e4 {[%clk 0:03:02]} 6... g6 {[%clk
0:03:02.6]} 7. f3 {[%clk 0:03:01]} 7... Bg7 {[%clk 0:03:02.8]} 8. Nge2 {[%clk
0:03:01.6]} 8... O-O {[%clk 0:03:01.5]} 9. Ng3 {[%clk 0:03:01.8]} 9... a6 {[%clk
0:03:00.2]} 10. a4 {[%clk 0:03:02.4]} 10... Re8 {[%clk 0:02:52.9]} 11. Be2
{[%clk 0:03:02.1]} 11... h5 {[%clk 0:02:50.6]} 12. O-O {[%clk 0:03:00]} 12... h4
{[%clk 0:02:47.3]} 13. Nh1 {[%clk 0:02:59.4]} 13... Nbd7 {[%clk 0:02:45]} 14.
Nf2 {[%clk 0:02:57.8]} 14... Nf8 {[%clk 0:02:31.8]} 15. Bg5 {[%clk 0:02:34.9]}
15... h3 {[%clk 0:02:31.3]} 16. g3 {[%clk 0:02:33.1]} 16... N8h7 {[%clk
0:02:30.4]} 17. Be3 {[%clk 0:02:31.1]} 17... Rb8 {[%clk 0:02:23.2]} 18. Qd2
{[%clk 0:02:30.4]} 18... Nd7 {[%clk 0:02:20.5]} 19. Nxh3 {[%clk 0:02:19.4]}
19... Ne5 {[%clk 0:02:14.7]} 20. Nf2 {[%clk 0:02:15.6]} 20... b5 {[%clk
0:02:13.8]} 21. f4 {[%clk 0:02:00.3]} 21... Nc4 {[%clk 0:02:10.4]} 22. Bxc4
{[%clk 0:02:00.5]} 22... bxc4 {[%clk 0:02:11.3]} 23. Rfe1 {[%clk 0:01:59]} 23...
Rb3 {[%clk 0:02:04.4]} 24. Qe2 {[%clk 0:01:50.9]} 24... Qb6 {[%clk 0:01:58]} 25.
Qxc4 {[%clk 0:01:43.8]} 25... Rxb2 {[%clk 0:01:40.9]} 26. Rac1 {[%clk
0:01:40.7]} 26... Rb4 {[%clk 0:01:37.5]} 27. Qe2 {[%clk 0:01:33.5]} 27... Rb3
{[%clk 0:01:26.2]} 28. Nfd1 {[%clk 0:01:20.5]} 28... Nf6 {[%clk 0:01:23.3]} 29.
Nf2 {[%clk 0:01:17.7]} 29... Ng4 {[%clk 0:01:16.3]} 30. Nxg4 {[%clk 0:01:13.3]}
30... Rxc3 {[%clk 0:01:02.5]} 31. Rb1 {[%clk 0:01:10.5]} 31... Rb3 {[%clk
0:00:48.6]} 32. Qc2 {[%clk 0:01:00.8]} 32... Rb2 {[%clk 0:00:22.4]} 33. Rxb2
{[%clk 0:00:57.4]} 33... Qxb2 {[%clk 0:00:22]} 34. Qxb2 {[%clk 0:00:55]} 34...
Bxb2 {[%clk 0:00:22.9]} 35. Nf2 {[%clk 0:00:55.7]} 35... Bd7 {[%clk 0:00:22.8]}
36. Rb1 {[%clk 0:00:52]} 36... Bg7 {[%clk 0:00:18.4]} 37. Rb6 {[%clk 0:00:45.3]}
37... c4 {[%clk 0:00:14.8]} 38. Rxd6 {[%clk 0:00:43.2]} 38... Bxa4 {[%clk
0:00:14.3]} 39. Rxa6 {[%clk 0:00:42.9]} 39... Bc2 {[%clk 0:00:14.4]} 40. Rc6
{[%clk 0:00:31.7]} 40... Bxe4 {[%clk 0:00:13.6]} 41. Nxe4 {[%clk 0:00:27.8]}
41... Rxe4 {[%clk 0:00:14.5]} 42. Rc8+ {[%clk 0:00:24.3]} 42... Kh7 {[%clk
0:00:14.3]} 43. Bf2 {[%clk 0:00:19.3]} 43... Bd4 {[%clk 0:00:11.1]} 44. Kf1
{[%clk 0:00:16.5]} 44... Bxf2 {[%clk 0:00:10.6]} 45. Kxf2 {[%clk 0:00:17.4]}
45... Rd4 {[%clk 0:00:11.2]} 46. d6 {[%clk 0:00:16.6]} 46... Rxd6 {[%clk
0:00:09.7]} 47. Rxc4 {[%clk 0:00:17.2]} 47... Rd2+ {[%clk 0:00:10.3]} 48. Kf3
{[%clk 0:00:15.5]} 48... Rxh2 {[%clk 0:00:10.4]} 49. Rc7 {[%clk 0:00:14.5]}
49... Kg7 {[%clk 0:00:10.4]} 50. Kg4 {[%clk 0:00:14.9]} 50... Rf2 {[%clk
0:00:09.5]} 51. Ra7 {[%clk 0:00:14.7]} 51... Rf1 {[%clk 0:00:09]} 52. Rc7 {[%clk
0:00:14.8]} 1/2-1/2

[Event "*** Titled Tuesday Blitz"]
[Site "Chess.com"]
[Date "2020.10.20"]
[Round "7"]
[White "MFBerna"]
[Black "AliKa2810"]
[Result "1-0"]
[WhiteElo "2432"]
[BlackElo "2577"]
[TimeControl "180+1"]
[EndTime "11:20:26 PDT"]
[Termination "MFBerna won on time"]

1. b3 {[%clk 0:03:00.9]} 1... d5 {[%clk 0:02:59.4]} 2. Bb2 {[%clk 0:03:00.7]}
2... Bg4 {[%clk 0:02:59.6]} 3. h3 {[%clk 0:02:58.3]} 3... Bh5 {[%clk 0:02:58.6]}
4. g4 {[%clk 0:02:58.5]} 4... Bg6 {[%clk 0:02:58.9]} 5. Bg2 {[%clk 0:02:58.8]}
5... e6 {[%clk 0:02:56.8]} 6. c4 {[%clk 0:02:56.6]} 6... Nf6 {[%clk 0:02:53.1]}
7. Nf3 {[%clk 0:02:55]} 7... Nbd7 {[%clk 0:02:48.5]} 8. d3 {[%clk 0:02:54.2]}
8... Be7 {[%clk 0:02:44.1]} 9. Nc3 {[%clk 0:02:47.9]} 9... c6 {[%clk 0:02:39.5]}
10. Nh4 {[%clk 0:02:43.8]} 10... d4 {[%clk 0:02:30.8]} 11. Nb1 {[%clk
0:02:29.9]} 11... Qa5+ {[%clk 0:02:14.5]} 12. Nd2 {[%clk 0:02:11.7]} 12... e5
{[%clk 0:02:02.3]} 13. a3 {[%clk 0:01:56.5]} 13... Qb6 {[%clk 0:01:57.2]} 14. b4
{[%clk 0:01:53.1]} 14... a5 {[%clk 0:01:56.9]} 15. c5 {[%clk 0:01:39.4]} 15...
Qb5 {[%clk 0:01:52.8]} 16. Qb3 {[%clk 0:01:20.5]} 16... axb4 {[%clk 0:01:44.2]}
17. axb4 {[%clk 0:01:18.1]} 17... Rxa1+ {[%clk 0:01:43.8]} 18. Bxa1 {[%clk
0:01:19]} 18... O-O {[%clk 0:01:43.1]} 19. Nxg6 {[%clk 0:01:14.9]} 19... hxg6
{[%clk 0:01:42.7]} 20. Qc4 {[%clk 0:00:58.3]} 20... Ra8 {[%clk 0:01:32]} 21. O-O
{[%clk 0:00:54]} 21... Qxc4 {[%clk 0:01:04.2]} 22. Nxc4 {[%clk 0:00:54.9]} 22...
Ra2 {[%clk 0:01:04.3]} 23. Bf3 {[%clk 0:00:50.2]} 23... Nd5 {[%clk 0:01:01]} 24.
Rb1 {[%clk 0:00:31.2]} 24... Nxb4 {[%clk 0:00:53.2]} 25. Rxb4 {[%clk 0:00:14.3]}
25... Rxa1+ {[%clk 0:00:52.7]} 26. Kg2 {[%clk 0:00:14.8]} 26... Nxc5 {[%clk
0:00:52.9]} 27. Nxe5 {[%clk 0:00:15.5]} 27... Nxd3 {[%clk 0:00:44.5]} 28. Rxb7
{[%clk 0:00:15]} 28... Ne1+ {[%clk 0:00:31.5]} 29. Kg3 {[%clk 0:00:12.4]} 29...
Bd6 {[%clk 0:00:31.6]} 30. Bxc6 {[%clk 0:00:07.2]} 30... Bxe5+ {[%clk
0:00:30.7]} 31. f4 {[%clk 0:00:07.8]} 31... Ra3+ {[%clk 0:00:27.8]} 32. Kf2
{[%clk 0:00:05.2]} 32... Bxf4 {[%clk 0:00:25.4]} 33. Kxe1 {[%clk 0:00:05.6]}
33... Be3 {[%clk 0:00:09.7]} 34. Kf1 {[%clk 0:00:05.5]} 34... Ra1+ {[%clk
0:00:08.4]} 35. Kg2 {[%clk 0:00:05.8]} 35... f5 {[%clk 0:00:07]} 36. Bd5+ {[%clk
0:00:04.9]} 36... Kh7 {[%clk 0:00:06.9]} 37. gxf5 {[%clk 0:00:02.8]} 37... gxf5
{[%clk 0:00:07.1]} 38. Be6 {[%clk 0:00:03.5]} 38... f4 {[%clk 0:00:06.8]} 39.
Bf5+ {[%clk 0:00:03.5]} 39... Kh6 {[%clk 0:00:06.8]} 40. Rb6+ {[%clk 0:00:04.1]}
40... Kh5 {[%clk 0:00:06.3]} 41. Bg6+ {[%clk 0:00:03.9]} 41... Kg5 {[%clk
0:00:06.6]} 42. Be4 {[%clk 0:00:03.9]} 42... Rg1+ {[%clk 0:00:04.7]} 43. Kh2
{[%clk 0:00:04.5]} 43... Rf1 {[%clk 0:00:04.3]} 44. Rg6+ {[%clk 0:00:04.8]}
44... Kh4 {[%clk 0:00:02.7]} 45. Rg2 {[%clk 0:00:05.1]} 1-0

[Event "*** Titled Tuesday Blitz"]
[Site "Chess.com"]
[Date "2020.10.20"]
[Round "7"]
[White "GregShahade"]
[Black "realmadridtv"]
[Result "1/2-1/2"]
[WhiteElo "2658"]
[BlackElo "2430"]
[TimeControl "180+1"]
[EndTime "11:20:28 PDT"]
[Termination "Game drawn by repetition"]

1. e4 {[%clk 0:03:00.9]} 1... e5 {[%clk 0:02:57.5]} 2. Nf3 {[%clk 0:03:00.7]}
2... Nc6 {[%clk 0:02:55.4]} 3. Bb5 {[%clk 0:03:01]} 3... a6 {[%clk 0:02:54.2]}
4. Ba4 {[%clk 0:03:00.3]} 4... Nf6 {[%clk 0:02:54.5]} 5. O-O {[%clk 0:03:00.6]}
5... Nxe4 {[%clk 0:02:53]} 6. d4 {[%clk 0:02:59.9]} 6... Be7 {[%clk 0:02:51.6]}
7. Re1 {[%clk 0:02:52.7]} 7... b5 {[%clk 0:02:51]} 8. Rxe4 {[%clk 0:02:51.2]}
8... d5 {[%clk 0:02:50.5]} 9. Nxe5 {[%clk 0:02:51]} 9... Nxe5 {[%clk 0:02:50.5]}
10. Rxe5 {[%clk 0:02:51.9]} 10... bxa4 {[%clk 0:02:51.2]} 11. b3 {[%clk
0:02:52.2]} 11... O-O {[%clk 0:02:49.5]} 12. Ba3 {[%clk 0:02:52.6]} 12... Bxa3
{[%clk 0:02:47.4]} 13. Nxa3 {[%clk 0:02:53.5]} 13... Qd6 {[%clk 0:02:44.9]} 14.
Nb1 {[%clk 0:02:53.1]} 14... f6 {[%clk 0:02:35.1]} 15. Re1 {[%clk 0:02:53.1]}
15... Bf5 {[%clk 0:02:30.9]} 16. Nc3 {[%clk 0:02:53.3]} 16... a3 {[%clk
0:02:24.6]} 17. Na4 {[%clk 0:02:43.3]} 17... Rae8 {[%clk 0:02:18.2]} 18. Qd2
{[%clk 0:02:43.4]} 18... h5 {[%clk 0:02:09.1]} 19. h3 {[%clk 0:02:34.8]} 19...
Kh7 {[%clk 0:01:55.5]} 20. c3 {[%clk 0:02:30.3]} 20... Bg6 {[%clk 0:01:46.2]}
21. Nc5 {[%clk 0:02:28.2]} 21... Rxe1+ {[%clk 0:01:36.1]} 22. Rxe1 {[%clk
0:02:29.1]} 22... Re8 {[%clk 0:01:36.7]} 23. Rxe8 {[%clk 0:02:29.1]} 23... Bxe8
{[%clk 0:01:37.6]} 24. Qe2 {[%clk 0:02:29.6]} 24... Bg6 {[%clk 0:01:28.2]} 25.
Qxa6 {[%clk 0:02:21.4]} 25... Qf4 {[%clk 0:01:22.2]} 26. Qxa3 {[%clk 0:02:16.8]}
26... Qd2 {[%clk 0:01:22.1]} 27. b4 {[%clk 0:01:45.1]} 27... Qe1+ {[%clk
0:01:14.8]} 28. Kh2 {[%clk 0:01:45.2]} 28... Qxf2 {[%clk 0:01:13.4]} 29. Qc1
{[%clk 0:01:21.8]} 29... Qxa2 {[%clk 0:01:10.7]} 30. Qe3 {[%clk 0:01:19.5]}
30... Qa1 {[%clk 0:01:00.9]} 31. Ne6 {[%clk 0:01:17.3]} 31... Be4 {[%clk
0:00:56.5]} 32. Qg3 {[%clk 0:01:17.3]} 32... g5 {[%clk 0:00:41.6]} 33. Qxc7+
{[%clk 0:01:17.2]} 33... Kg6 {[%clk 0:00:42.3]} 34. Nf8+ {[%clk 0:00:20.5]}
34... Kf5 {[%clk 0:00:42.1]} 35. Qg3 {[%clk 0:00:18.4]} 35... Qb2 {[%clk
0:00:35.5]} 36. Nd7 {[%clk 0:00:15.4]} 36... Kg6 {[%clk 0:00:19.6]} 37. h4
{[%clk 0:00:13.6]} 37... Qd2 {[%clk 0:00:14.8]} 38. hxg5 {[%clk 0:00:12.4]}
38... h4 {[%clk 0:00:13.7]} 39. Qg4 {[%clk 0:00:10.4]} 39... f5 {[%clk
0:00:13.5]} 40. Ne5+ {[%clk 0:00:10]} 40... Kg7 {[%clk 0:00:13.2]} 41. Qh3
{[%clk 0:00:07.8]} 41... Qf4+ {[%clk 0:00:12.2]} 42. Kg1 {[%clk 0:00:08]} 42...
Qc1+ {[%clk 0:00:11.8]} 43. Kh2 {[%clk 0:00:08.5]} 43... Qxg5 {[%clk 0:00:11.6]}
44. Nf3 {[%clk 0:00:05.8]} 44... Qf4+ {[%clk 0:00:11.2]} 45. Kh1 {[%clk
0:00:06.3]} 45... Qc1+ {[%clk 0:00:10.9]} 46. Ng1 {[%clk 0:00:05.7]} 46... Qg5
{[%clk 0:00:07.8]} 47. Nf3 {[%clk 0:00:05.2]} 47... Qc1+ {[%clk 0:00:07.4]} 48.
Kh2 {[%clk 0:00:05.5]} 48... Qf4+ {[%clk 0:00:07.1]} 49. Kh1 {[%clk 0:00:06]}
49... Qc1+ {[%clk 0:00:07]} 1/2-1/2

[Event "*** Titled Tuesday Blitz"]
[Site "Chess.com"]
[Date "2020.10.20"]
[Round "7"]
[White "Zemerovv"]
[Black "djano"]
[Result "0-1"]
[WhiteElo "2288"]
[BlackElo "2462"]
[TimeControl "180+1"]
[EndTime "11:20:29 PDT"]
[Termination "djano won on time"]

1. g3 {[%clk 0:03:00.9]} 1... d5 {[%clk 0:02:53]} 2. Bg2 {[%clk 0:03:01.8]} 2...
Nc6 {[%clk 0:02:53.5]} 3. d3 {[%clk 0:03:01.5]} 3... Nf6 {[%clk 0:02:50.7]} 4.
Nd2 {[%clk 0:03:01.9]} 4... h5 {[%clk 0:02:48.4]} 5. h3 {[%clk 0:03:00.5]} 5...
e5 {[%clk 0:02:46]} 6. e3 {[%clk 0:03:00.1]} 6... Bf5 {[%clk 0:02:34.9]} 7. Ne2
{[%clk 0:02:59]} 7... Qd7 {[%clk 0:02:35.1]} 8. b3 {[%clk 0:02:56.1]} 8... Be7
{[%clk 0:02:30.4]} 9. Bb2 {[%clk 0:02:55.5]} 9... O-O {[%clk 0:02:29.5]} 10. Nf3
{[%clk 0:02:54.6]} 10... Bd6 {[%clk 0:02:26]} 11. g4 {[%clk 0:02:51.7]} 11...
hxg4 {[%clk 0:02:25.1]} 12. hxg4 {[%clk 0:02:51.2]} 12... Bxg4 {[%clk
0:02:25.5]} 13. Ng5 {[%clk 0:02:46.1]} 13... Qf5 {[%clk 0:02:20.7]} 14. Nh3
{[%clk 0:02:39.4]} 14... a5 {[%clk 0:02:12.5]} 15. Qd2 {[%clk 0:02:38.3]} 15...
a4 {[%clk 0:02:10.1]} 16. Ng3 {[%clk 0:02:36.5]} 16... Qd7 {[%clk 0:02:02.9]}
17. f3 {[%clk 0:02:27.4]} 17... e4 {[%clk 0:01:49.1]} 18. f4 {[%clk 0:02:08.3]}
18... axb3 {[%clk 0:01:42.2]} 19. Bxf6 {[%clk 0:02:03]} 19... gxf6 {[%clk
0:01:38.9]} 20. Kf2 {[%clk 0:01:55.5]} 20... f5 {[%clk 0:01:31]} 21. Ng5 {[%clk
0:01:53.4]} 21... f6 {[%clk 0:01:04.5]} 22. Nh3 {[%clk 0:01:38.6]} 22... bxa2
{[%clk 0:00:58.9]} 23. dxe4 {[%clk 0:01:36.1]} 23... dxe4 {[%clk 0:00:53.9]} 24.
Qd5+ {[%clk 0:01:35]} 24... Qf7 {[%clk 0:00:51.4]} 25. Qxf7+ {[%clk 0:01:26.7]}
25... Kxf7 {[%clk 0:00:52.3]} 26. Bf1 {[%clk 0:01:23.2]} 26... Nb4 {[%clk
0:00:47.4]} 27. Bc4+ {[%clk 0:01:20.9]} 27... Ke7 {[%clk 0:00:46.4]} 28. Ng1
{[%clk 0:01:13.2]} 28... Nxc2 {[%clk 0:00:42.4]} 29. N1e2 {[%clk 0:01:10.5]}
29... Nxa1 {[%clk 0:00:41.1]} 30. Rxa1 {[%clk 0:01:04.3]} 30... Bxe2 {[%clk
0:00:40.7]} 31. Nxf5+ {[%clk 0:01:00.8]} 31... Kd8 {[%clk 0:00:36.1]} 32. Kxe2
{[%clk 0:00:52.3]} 32... Rh8 {[%clk 0:00:34.7]} 33. Kd2 {[%clk 0:00:45.5]} 33...
Rh2+ {[%clk 0:00:33.1]} 34. Kc3 {[%clk 0:00:44.7]} 34... Ra5 {[%clk 0:00:31.2]}
35. Ng3 {[%clk 0:00:39.3]} 35... Rh3 {[%clk 0:00:28.5]} 36. Nxe4 {[%clk
0:00:34.6]} 36... Rxe3+ {[%clk 0:00:27.4]} 37. Kd4 {[%clk 0:00:33.8]} 37... Bxf4
{[%clk 0:00:26.1]} 38. Rxa2 {[%clk 0:00:27.7]} 38... Rxa2 {[%clk 0:00:24.7]} 39.
Bxa2 {[%clk 0:00:27.1]} 39... Ra3 {[%clk 0:00:24.8]} 40. Bd5 {[%clk 0:00:19.8]}
40... Be5+ {[%clk 0:00:25]} 41. Kc4 {[%clk 0:00:17.2]} 41... c6 {[%clk
0:00:25.9]} 42. Bg8 {[%clk 0:00:15.5]} 42... Kc7 {[%clk 0:00:25.4]} 43. Be6
{[%clk 0:00:12.2]} 43... Re3 {[%clk 0:00:23.1]} 44. Bf5 {[%clk 0:00:10.6]} 44...
b5+ {[%clk 0:00:22.4]} 45. Kb4 {[%clk 0:00:10.1]} 45... Bd6+ {[%clk 0:00:21.6]}
46. Nxd6 {[%clk 0:00:07.2]} 46... Kxd6 {[%clk 0:00:22.5]} 47. Bg6 {[%clk
0:00:04.2]} 47... Rg3 {[%clk 0:00:21.2]} 48. Bf5 {[%clk 0:00:02.5]} 48... Rf3
{[%clk 0:00:21.2]} 49. Bg6 {[%clk 0:00:02]} 49... Rf4+ {[%clk 0:00:22.1]} 0-1

[Event "*** Titled Tuesday Blitz"]
[Site "Chess.com"]
[Date "2020.10.20"]
[Round "7"]
[White "IngOscarArdila"]
[Black "MF1966Idrisov"]
[Result "1-0"]
[WhiteElo "2194"]
[BlackElo "2322"]
[TimeControl "180+1"]
[EndTime "11:20:29 PDT"]
[Termination "IngOscarArdila won by resignation"]

1. d4 {[%clk 0:03:00.9]} 1... d6 {[%clk 0:02:58.7]} 2. Nf3 {[%clk 0:03:00]} 2...
f5 {[%clk 0:02:58.5]} 3. c4 {[%clk 0:02:59.1]} 3... Nf6 {[%clk 0:02:58.7]} 4.
Nc3 {[%clk 0:02:58.7]} 4... e6 {[%clk 0:02:59.1]} 5. g3 {[%clk 0:02:57.8]} 5...
Be7 {[%clk 0:02:59.4]} 6. Bg2 {[%clk 0:02:57.7]} 6... O-O {[%clk 0:02:59.6]} 7.
O-O {[%clk 0:02:57.7]} 7... Ne4 {[%clk 0:02:59.8]} 8. Qc2 {[%clk 0:02:57.1]}
8... Nxc3 {[%clk 0:02:59.6]} 9. Qxc3 {[%clk 0:02:56.8]} 9... Bf6 {[%clk
0:02:59.9]} 10. Qc2 {[%clk 0:02:55]} 10... e5 {[%clk 0:02:56.8]} 11. dxe5 {[%clk
0:02:54.1]} 11... dxe5 {[%clk 0:02:56.5]} 12. e4 {[%clk 0:02:53.8]} 12... f4
{[%clk 0:02:55]} 13. gxf4 {[%clk 0:02:50.5]} 13... exf4 {[%clk 0:02:55.2]} 14.
Bxf4 {[%clk 0:02:50.1]} 14... Bxb2 {[%clk 0:02:55.1]} 15. Rad1 {[%clk
0:02:46.2]} 15... Qe7 {[%clk 0:02:51.5]} 16. Bg3 {[%clk 0:02:18.7]} 16... Ba3
{[%clk 0:02:35.4]} 17. c5 {[%clk 0:02:09]} 17... Be6 {[%clk 0:02:07.9]} 18. Nd4
{[%clk 0:01:58.7]} 18... Bf7 {[%clk 0:01:49.1]} 19. Nb5 {[%clk 0:01:45.4]} 19...
Bxc5 {[%clk 0:01:26.6]} 20. Nxc7 {[%clk 0:01:42.9]} 20... Nc6 {[%clk 0:01:25]}
21. Nxa8 {[%clk 0:01:39.4]} 21... Rxa8 {[%clk 0:01:24.6]} 22. e5 {[%clk
0:01:23]} 22... Nd4 {[%clk 0:01:20.4]} 23. Qe4 {[%clk 0:01:19.2]} 23... Nc6
{[%clk 0:01:12.7]} 24. Rfe1 {[%clk 0:01:09.9]} 24... Rf8 {[%clk 0:01:07.9]} 25.
e6 {[%clk 0:01:05.3]} 25... Bg6 {[%clk 0:01:07.3]} 26. Qd5 {[%clk 0:00:59.1]}
26... Kh8 {[%clk 0:01:01.1]} 27. Qd7 {[%clk 0:00:58.3]} 27... Qf6 {[%clk
0:01:01]} 28. Rf1 {[%clk 0:00:43.8]} 28... Nd4 {[%clk 0:00:54]} 29. Qxb7 {[%clk
0:00:32]} 29... Bc2 {[%clk 0:00:44.1]} 30. Rxd4 {[%clk 0:00:29.9]} 30... Bxd4
{[%clk 0:00:39.5]} 31. e7 {[%clk 0:00:28.8]} 31... Re8 {[%clk 0:00:37.8]} 32.
Qc6 {[%clk 0:00:20.2]} 32... Qxc6 {[%clk 0:00:29.9]} 33. Bxc6 {[%clk 0:00:19.8]}
33... Rxe7 {[%clk 0:00:28.8]} 34. Rc1 {[%clk 0:00:19.7]} 34... Ba4 {[%clk
0:00:21.3]} 35. Bxa4 {[%clk 0:00:17.8]} 35... h6 {[%clk 0:00:19.8]} 36. Rc8+
{[%clk 0:00:17.5]} 36... Kh7 {[%clk 0:00:19.3]} 37. Bc2+ {[%clk 0:00:18.1]}
37... g6 {[%clk 0:00:19.6]} 38. Rc6 {[%clk 0:00:17.5]} 38... Rg7 {[%clk
0:00:16.1]} 39. h4 {[%clk 0:00:16.9]} 39... h5 {[%clk 0:00:15.7]} 40. Kg2 {[%clk
0:00:16.3]} 40... Kh6 {[%clk 0:00:15.3]} 41. Bf4+ {[%clk 0:00:16.4]} 41... Kh7
{[%clk 0:00:14.8]} 42. Bg5 {[%clk 0:00:16.6]} 42... Bb6 {[%clk 0:00:14.2]} 43.
f4 {[%clk 0:00:16.5]} 43... Be3 {[%clk 0:00:12.2]} 44. Kf3 {[%clk 0:00:16.4]}
44... Bd2 {[%clk 0:00:10.9]} 45. a4 {[%clk 0:00:16.2]} 45... Bb4 {[%clk
0:00:09.7]} 46. f5 {[%clk 0:00:16.3]} 46... gxf5 {[%clk 0:00:08.7]} 47. Bxf5+
{[%clk 0:00:16.1]} 47... Kg8 {[%clk 0:00:08.8]} 48. Rc8+ {[%clk 0:00:16]} 48...
Kf7 {[%clk 0:00:08.7]} 49. Rc7+ {[%clk 0:00:16.2]} 49... Kf8 {[%clk 0:00:08.7]}
50. Rxg7 {[%clk 0:00:15.9]} 50... Kxg7 {[%clk 0:00:08.6]} 51. Ke4 {[%clk
0:00:14.3]} 51... Bc5 {[%clk 0:00:07.8]} 52. Kd5 {[%clk 0:00:14.4]} 1-0